fUSD/lending_fUSD_20250929
["ID","MTS","AMOUNT","RATE_DAILY","PERIOD"]
[388396822,1759155031577,-164.85,0.00015541,2]
[388396823,1759155031586,-250.0,0.00015607,2]
[388396824,1759155031595,-179.85306497,0.00015607,2]
[388396825,1759155031604,-150.0,0.00015627,2]
[388396826,1759155031613,-456.04,0.00015652,2]
[388396827,1759155031623,-1000.0,0.00015667,2]
[388396828,1759155031632,-150.0,0.00015773,2]
[388396829,1759155031642,-200.0,0.00015783,2]
[388396830,1759155031658,-150.0,0.00015841,7]
[388396831,1759155031668,-288.0,0.00015853,2]
[388396832,1759155031678,-150.0,0.00015854,2]
[388396833,1759155031688,-150.0,0.00015854,2]
[388396834,1759155031698,-150.0,0.00015854,2]
[388396835,1759155031708,-150.0,0.00015854,2]
[388396836,1759155031717,-500.0,0.00015863,2]
[388396837,1759155031728,-2446.35,0.00015865,2]
[388396860,1759155032132,-171.27,0.00015881,2]
[388396861,1759155032153,-300.0,0.00015881,2]
[388396862,1759155032162,-178.89896122,0.00015882,2]
[388396863,1759155032173,-500.0,0.00015882,2]
[388396864,1759155032182,-500.0,0.00015882,2]
[388396865,1759155032191,-500.0,0.00015882,2]
[388396866,1759155032200,-500.0,0.00015882,2]
[388396867,1759155032211,-500.0,0.00015882,2]
[388396868,1759155032220,-500.0,0.00015882,2]
[388396869,1759155032230,-500.0,0.00015882,2]
[388396870,1759155032239,-500.0,0.00015882,2]
[388396871,1759155032249,-514.69818408,0.00015882,2]
[388396872,1759155032259,-500.0,0.00015882,2]
[388396873,1759155032268,-500.0,0.00015882,2]
[388396874,1759155032277,-500.0,0.00015882,2]
[388396875,1759155032286,-500.0,0.00015882,2]
[388396876,1759155032298,-500.0,0.00015882,2]
[388396877,1759155032307,-500.0,0.00015882,2]
[388396878,1759155032317,-500.0,0.00015882,2]
[388396879,1759155032326,-500.0,0.00015882,2]
[388396880,1759155032336,-500.0,0.00015882,2]
[388396881,1759155032345,-500.0,0.00015882,2]
[388396882,1759155032354,-500.0,0.00015882,2]
[388396883,1759155032364,-386.98,0.00015883,3]
[388396884,1759155032374,-151.0,0.00015941,2]
[388396885,1759155032384,-526.07321155,0.00015941,2]
[388396886,1759155032393,-151.0,0.00015941,2]
[388396887,1759155032404,-151.0,0.00015941,2]
[388396888,1759155032413,-151.0,0.00015941,2]
[388396889,1759155032423,-151.0,0.00015941,2]
[388396890,1759155032433,-151.0,0.00015941,2]
[388396891,1759155032442,-151.0,0.00015941,2]
[388396892,1759155032451,-151.0,0.00015941,2]
[388396893,1759155032461,-200.0,0.00015941,2]
[388396894,1759155032470,-275.22888194,0.00015941,2]
[388396895,1759155032479,-151.0,0.00015941,2]
[388396896,1759155032489,-151.0,0.00015941,2]
[388396897,1759155032499,-151.0,0.00015941,2]
[388396898,1759155032508,-151.0,0.00015941,2]
[388396899,1759155032517,-151.0,0.00015941,2]
[388396900,1759155032527,-151.0,0.00015941,2]
[388396901,1759155032536,-151.0,0.00015941,2]
[388396902,1759155032547,-151.0,0.00015941,2]
[388396903,1759155032556,-151.0,0.00015941,2]
[388396904,1759155032565,-183.24597893,0.00015941,2]
[388396905,1759155032575,-250.0,0.00015951,2]
[388396906,1759155032584,-12204.33736148,0.00015951,2]
[388396907,1759155032605,-564.13304519,0.00015951,2]
[388396908,1759155032618,-690.4702841,0.00015951,2]
[388396909,1759155032664,-13636.89570206,0.00015951,2]
[388396910,1759155032677,-3409.5,0.00015951,2]
[388396911,1759155032689,-3791.20167061,0.00015951,2]
[388396912,1759155032701,-293.77545443,0.00015951,2]
[388396913,1759155032713,-31950.45467161,0.00015951,2]
[388396914,1759155032726,-15516.47181052,0.00015951,2]
[388396915,1759155032736,-224.0,0.00015951,2]
[388396916,1759155032746,-150.0,0.00015967,2]
[388396917,1759155032756,-150.0,0.00016005,2]
[388396918,1759155032766,-248.03,0.0001601,2]
[388396919,1759155032775,-150.0,0.00016016,2]
[388396920,1759155032786,-1000.0,0.00016018,2]
[388396921,1759155032797,-254.52559678,0.00016107,2]
[388396922,1759155032807,-221.61,0.00016129,2]
[388396923,1759155032818,-150.0,0.00016137,2]
[388396924,1759155032828,-150.0,0.00016137,2]
[388396925,1759155032838,-672.09940013,0.00016221,2]
[388396926,1759155032848,-150.0,0.00016258,2]
[388396927,1759155032857,-1000.0,0.00016279,2]
[388396928,1759155032867,-1098.82,0.00016301,2]
[388396929,1759155032876,-150.0,0.00016307,2]
[388396930,1759155032885,-700.0,0.000164,5]
[388396931,1759155032895,-150.0,0.0001642,2]
[388396932,1759155032904,-150.0,0.0001642,2]
[388396933,1759155032914,-150.0,0.0001642,2]
[388396934,1759155032924,-150.0,0.0001642,2]
[388396935,1759155032934,-456.04,0.00016435,2]
[388396936,1759155032944,-1000.0,0.00016438,2]
[388396937,1759155032954,-562.44,0.00016438,2]
[388396938,1759155032964,-500.0,0.00016438,2]
[388396939,1759155032975,-200.0,0.00016489,2]
[388396940,1759155032984,-1400.0,0.000165,6]
[388396941,1759155032993,-150.0,0.00016501,2]
[388396942,1759155033003,-2000.0,0.00016532,2]
[388396943,1759155033012,-1000.0,0.00016575,2]
[388396944,1759155033021,-659.41,0.00016589,2]
[388396945,1759155033031,-299.0,0.000166,2]
[388396946,1759155033041,-2100.0,0.000166,6]
[388396947,1759155033052,-150.0,0.00016647,2]
[388396948,1759155033062,-2800.0,0.000167,6]
[388396949,1759155033072,-292.81639271,0.00016731,2]
[388396950,1759155033083,-2000.0,0.00016732,2]
[388396951,1759155033094,-150.0,0.00016744,2]
[388396952,1759155033103,-1029.0,0.000168,2]
[388396953,1759155033113,-3500.0,0.000168,6]
[388396954,1759155033123,-176.97025721,0.00016804,2]
[388396955,1759155033133,-500.0,0.0001682,2]
[388396956,1759155033144,-488.0,0.0001682,2]
[388396957,1759155033154,-500.0,0.0001682,2]
[388396958,1759155033164,-500.0,0.0001682,2]
[388396959,1759155033173,-150.0,0.0001682,2]
[388396960,1759155033184,-150.0,0.0001682,2]
[388396961,1759155033194,-500.0,0.0001682,2]
[388396962,1759155033203,-674.0,0.0001682,2]
[388396963,1759155033214,-150.0,0.0001682,2]
[388396964,1759155033223,-500.0,0.0001682,2]
[388396965,1759155033233,-150.0,0.0001682,2]
[388396966,1759155033244,-500.0,0.0001682,2]
[388396967,1759155033254,-2540.0,0.0001682,2]
[388396968,1759155033264,-150.0,0.0001682,2]
[388396969,1759155033275,-500.0,0.0001682,2]
[388396970,1759155033285,-150.0,0.0001682,2]
[388396971,1759155033295,-150.0,0.0001682,2]
[388396972,1759155033304,-200.61963341,0.0001682,2]
[388396973,1759155033314,-150.0,0.0001682,2]
[388396974,1759155033324,-500.0,0.0001682,2]
[388396975,1759155033334,-500.0,0.0001682,2]
[388396976,1759155033344,-500.0,0.0001682,2]
[388396977,1759155033354,-500.0,0.0001682,2]
[388396978,1759155033364,-150.0,0.0001682,2]
[388396979,1759155033374,-500.0,0.0001682,2]
[388396980,1759155033384,-500.0,0.0001682,2]
[388396981,1759155033394,-150.0,0.0001682,2]
[388396982,1759155033404,-500.0,0.0001682,2]
[388396983,1759155033414,-150.0,0.0001682,2]
[388396984,1759155033424,-659.0,0.0001682,2]
[388396985,1759155033434,-500.0,0.0001682,2]
[388396986,1759155033444,-2598.78448,0.0001683,2]
[388396987,1759155033454,-809.935135,0.00016837,2]
[388396988,1759155033464,-176.97025721,0.00016852,2]
[388396989,1759155033474,-1000.0,0.00016885,2]
[388396990,1759155033484,-16422.059,0.00016899,2]
[388396991,1759155033494,-746.139,0.00016899,2]
[388396992,1759155033504,-184.25350453,0.00016899,2]
[388396993,1759155033515,-184.25350446,0.00016899,2]
[388396994,1759155033525,-184.25350446,0.00016899,2]
[388396995,1759155033535,-184.25350446,0.00016899,2]
[388396996,1759155033545,-184.25350446,0.00016899,2]
[388396997,1759155033556,-184.25350446,0.000169,2]
[388396998,1759155033566,-184.25350446,0.000169,2]
[388396999,1759155033577,-184.25350446,0.000169,2]
[388397000,1759155033587,-184.25350446,0.000169,2]
[388397001,1759155033598,-700.0,0.000169,6]
[388397002,1759155033608,-261.11668299,0.000169,2]
[388397003,1759155033618,-176.97025721,0.000169,2]
[388397004,1759155033628,-168.15914664,0.000169,2]
[388397005,1759155033639,-165.80758188,0.000169,2]
[388397006,1759155033652,-226.55520494,0.000169,2]
[388397007,1759155033664,-184.25350446,0.000169,2]
[388397008,1759155033674,-350.53,0.00016923,2]
[388397009,1759155033684,-388.63558128,0.00016973,2]
[388397010,1759155033694,-500.0,0.00016973,2]
[388397011,1759155033705,-500.95146613,0.00016973,2]
[388397012,1759155033715,-500.0,0.00016973,2]
[388397013,1759155033728,-500.0,0.00016973,2]
[388397014,1759155033738,-500.0,0.00016973,2]
[388397015,1759155033749,-500.0,0.00016973,2]
[388397016,1759155033760,-500.0,0.00016973,2]
[388397017,1759155033770,-500.0,0.00016973,2]
[388397018,1759155033781,-500.0,0.00016973,2]
[388397019,1759155033792,-500.0,0.00016973,2]
[388397020,1759155033806,-373.74737981,0.00016973,2]
[388397021,1759155033816,-500.0,0.00016973,2]
[388397022,1759155033827,-500.0,0.00016973,2]
[388397023,1759155033837,-500.0,0.00016973,2]
[388397024,1759155033847,-500.0,0.00016973,2]
[388397025,1759155033857,-500.0,0.00016973,2]
[388397026,1759155033868,-303.83525159,0.00016973,2]
[388397027,1759155033878,-500.0,0.00016973,2]
[388397028,1759155033888,-500.0,0.00016973,2]
[388397029,1759155033898,-500.0,0.00016973,2]
[388397030,1759155033908,-500.0,0.00016973,2]
[388397031,1759155033917,-500.0,0.00016973,2]
[388397032,1759155033927,-500.0,0.00016973,2]
[388397033,1759155033938,-150.0,0.00016986,2]
[388397034,1759155033948,-150.0,0.00016986,2]
[388397035,1759155033958,-232.18428218,0.00016986,2]
[388397036,1759155033968,-154.8558059,0.00016986,2]
[388397037,1759155033978,-150.0,0.00016986,2]
[388397038,1759155033988,-271.37322478,0.00016986,2]
[388397039,1759155034000,-150.0,0.00016986,2]
[388397040,1759155034010,-154.69631849,0.00016986,2]
[388397041,1759155034021,-174.98136804,0.00016986,2]
[388397042,1759155034031,-166.71940717,0.0001699,2]
[388397043,1759155034042,-3588.2455583,0.00016991,2]
[388397044,1759155034055,-151.0,0.00016997,2]
[388397045,1759155034065,-151.0,0.00016997,2]
[388397046,1759155034076,-259.66378176,0.00016997,2]
[388397047,1759155034091,-56519.8262415,0.00016999,2]
[388397048,1759155034101,-158.758,0.00016999,2]
[388397049,1759155034111,-5707.2911566,0.00016999,2]
[388397050,1759155034121,-922.5094612,0.00016999,2]
[388397051,1759155034131,-10000.0,0.00016999,2]
[388397052,1759155034142,-13336.2673868,0.00016999,2]
[388397053,1759155034152,-106787.6392646,0.00016999,2]
[388397054,1759155034166,-300.0,0.00016999,2]
[388397055,1759155034176,-500.0,0.00016999,2]
[388397056,1759155034187,-500.0,0.00016999,2]
[388397057,1759155034198,-203.47499061,0.00016999,2]
[388397058,1759155034208,-500.0,0.00016999,2]
[388397059,1759155034218,-300.0,0.00016999,2]
[388397060,1759155034228,-300.0,0.00016999,2]
[388397061,1759155034238,-666.0,0.00016999,2]
[388397062,1759155034248,-300.0,0.00016999,2]
[388397063,1759155034259,-300.0,0.00016999,2]
[388397064,1759155034269,-500.0,0.00017,2]
[388397065,1759155034279,-699.0,0.00017,2]
[388397066,1759155034288,-25509.98943542,0.00017,2]
[388397067,1759155034305,-1346.57625593,0.00017,2]
[388397068,1759155034317,-354.49917607,0.00017,2]
[388397069,1759155034334,-12025.36674474,0.00017,2]
[388397070,1759155034345,-1450.0,0.00017,2]
[388397071,1759155034357,-13581.36498432,0.00017,2]
[388397073,1759155034370,-316.05104,0.00017,2]
[388397180,1759155038987,-620.1143923,0.00017,2]
[388397182,1759155039000,-495872.83224263,0.00017,2]
[388397184,1759155039010,-1211856.19142122,0.00017,2]
[388397186,1759155039020,-1139170.07030415,0.00017,2]
[388397190,1759155039045,-48206.72041007,0.00017,2]
[388397192,1759155039060,-16104.0,0.00017,2]
[388397194,1759155039072,-10290.0,0.00017,2]
[388397197,1759155039084,-40250.28586,0.00017,2]
[388397199,1759155039096,-14818.65479966,0.00017,2]
[388397201,1759155039107,-7719.42193108,0.00017,2]
[388397230,1759155039471,-500.0,0.00016983,2]
[388397231,1759155039481,-417140.47832344,0.00017,2]
[388397232,1759155039596,-523.50199999,0.00017,2]
[388397233,1759155039724,-1764988.92094295,0.00017,2]
[388397234,1759155039736,-188.48989795,0.00017,2]
[388397235,1759155039747,-300.0,0.00017,2]
[388397236,1759155039757,-3530.1110272,0.00017,2]
[388397237,1759155039766,-250.0,0.00017,2]
[388397238,1759155039776,-200.0,0.00017,2]
[388397239,1759155039785,-150.0,0.00017,2]
[388397240,1759155039795,-250.0,0.00017,2]
[388397241,1759155039806,-150.0,0.00017,2]
[388397242,1759155039817,-150.0,0.00017,2]
[388397243,1759155039827,-500.0,0.00017,2]
[388397244,1759155039837,-150.0,0.00017,2]
[388397245,1759155039847,-151.0,0.00017,2]
[388397246,1759155039856,-151.0,0.00017,2]
[388397247,1759155039866,-250.81472586,0.00017,2]
[388397248,1759155039876,-151.0,0.00017,2]
[388397249,1759155039886,-151.0,0.00017,2]
[388397250,1759155039896,-152.081862,0.00017,2]
[388397251,1759155039906,-161.64607451,0.00017,2]
[388397252,1759155039916,-151.0,0.00017,2]
[388397253,1759155039926,-151.0,0.00017,2]
[388397254,1759155039936,-151.0,0.00017,2]
[388397255,1759155039945,-151.0,0.00017,2]
[388397256,1759155039954,-151.0,0.00017,2]
[388397257,1759155039964,-288.411963,0.00017,2]
[388397258,1759155039974,-151.0,0.00017,2]
[388397259,1759155039984,-151.201636,0.00017,2]
[388397260,1759155039994,-151.0,0.00017,2]
[388397261,1759155040003,-151.0,0.00017,2]
[388397262,1759155040013,-151.0,0.00017,2]
[388397263,1759155040023,-151.0,0.00017,2]
[388397264,1759155040034,-151.0,0.00017,2]
[388397265,1759155040044,-151.0,0.00017,2]
[388397266,1759155040055,-151.0,0.00017,2]
[388397267,1759155040065,-258.774584,0.00017,2]
[388397268,1759155040075,-151.0,0.00017,2]
[388397269,1759155040085,-151.0,0.00017,2]
[388397270,1759155040095,-151.0,0.00017,2]
[388397271,1759155040105,-151.0,0.00017,2]
[388397272,1759155040114,-151.0,0.00017,2]
[388397273,1759155040123,-151.0,0.00017,2]
[388397274,1759155040133,-151.0,0.00017,2]
[388397275,1759155040142,-151.0,0.00017,2]
[388397276,1759155040152,-216.255113,0.00017,2]
[388397277,1759155040162,-216.255113,0.00017,2]
[388397278,1759155040171,-216.255113,0.00017,2]
[388397279,1759155040181,-270.080505,0.00017,2]
[388397280,1759155040190,-216.255113,0.00017,2]
[388397281,1759155040200,-191.153183,0.00017,2]
[388397282,1759155040210,-151.0,0.00017,2]
[388397283,1759155040220,-156.206942,0.00017,2]
[388397284,1759155040229,-151.0,0.00017,2]
[388397285,1759155040239,-151.0,0.00017,2]
[388397286,1759155040249,-151.0,0.00017,2]
[388397287,1759155040259,-151.0,0.00017,2]
[388397288,1759155040268,-151.0,0.00017,2]
[388397289,1759155040278,-151.0,0.00017,2]
[388397290,1759155040287,-151.0,0.00017,2]
[388397291,1759155040297,-151.0,0.00017,2]
[388397292,1759155040308,-151.0,0.00017,2]
[388397293,1759155040318,-151.0,0.00017,2]
[388397294,1759155040328,-151.0,0.00017,2]
[388397295,1759155040338,-1000.0,0.00017,2]
[388397296,1759155040348,-151.0,0.00017,2]
[388397297,1759155040358,-151.0,0.00017,2]
[388397298,1759155040368,-151.0,0.00017,2]
[388397299,1759155040378,-151.0,0.00017,2]
[388397300,1759155040388,-279.745595,0.00017,2]
[388397301,1759155040398,-164.854692,0.00017,2]
[388397302,1759155040407,-164.854692,0.00017,2]
[388397303,1759155040417,-631.846708,0.00017,2]
[388397304,1759155040426,-164.854692,0.00017,2]
[388397305,1759155040435,-631.846708,0.00017,2]
[388397306,1759155040444,-164.854692,0.00017,2]
[388397307,1759155040453,-631.846708,0.00017,2]
[388397308,1759155040464,-631.846708,0.00017,2]
[388397309,1759155040474,-151.0,0.00017,2]
[388397310,1759155040483,-151.0,0.00017,2]
[388397311,1759155040492,-266.065384,0.00017,2]
[388397312,1759155040502,-216.62685,0.00017,2]
[388397313,1759155040511,-216.62685,0.00017,2]
[388397314,1759155040520,-151.0,0.00017,2]
[388397315,1759155040530,-216.62685,0.00017,2]
[388397316,1759155040539,-216.62685,0.00017,2]
[388397317,1759155040549,-151.0,0.00017,2]
[388397318,1759155040559,-178.84605,0.00017,2]
[388397319,1759155040569,-151.0,0.00017,2]
[388397320,1759155040579,-167.551559,0.00017,2]
[388397321,1759155040588,-167.551559,0.00017,2]
[388397322,1759155040599,-167.551559,0.00017,2]
[388397323,1759155040608,-167.551559,0.00017,2]
[388397324,1759155041047,-1302.67765,0.00017,2]
[388397325,1759155041064,-1302.67765,0.00017,2]
[388397326,1759155041075,-1302.67765,0.00017,2]
[388397327,1759155041085,-1302.67765,0.00017,2]
[388397328,1759155041097,-151.0,0.00017,2]
[388397329,1759155041106,-151.0,0.00017,2]
[388397330,1759155041117,-151.0,0.00017,2]
[388397331,1759155041127,-151.0,0.00017,2]
[388397332,1759155041136,-151.0,0.00017,2]
[388397333,1759155041146,-218.368283,0.00017,2]
[388397334,1759155041156,-151.0,0.00017,2]
[388397335,1759155041166,-151.0,0.00017,2]
[388397336,1759155041175,-10012.454343,0.00017,2]
[388397337,1759155041184,-10012.454343,0.00017,2]
[388397338,1759155041193,-1560.0,0.00017,2]
[388397339,1759155041203,-10012.454343,0.00017,2]
[388397340,1759155041212,-1560.0,0.00017,2]
[388397341,1759155041222,-10012.454343,0.00017,2]
[388397342,1759155041231,-151.0,0.00017,2]
[388397343,1759155041253,-151.0,0.00017,2]
[388397344,1759155041266,-1560.0,0.00017,2]
[388397345,1759155041277,-292.606462,0.00017,2]
[388397346,1759155041287,-151.0,0.00017,2]
[388397347,1759155041298,-1560.0,0.00017,2]
[388397348,1759155041311,-151.0,0.00017,2]
[388397349,1759155041322,-151.0,0.00017,2]
[388397350,1759155041332,-151.0,0.00017,2]
[388397351,1759155041342,-151.0,0.00017,2]
[388397352,1759155041352,-151.0,0.00017,2]
[388397353,1759155041362,-151.0,0.00017,2]
[388397354,1759155041372,-151.0,0.00017,2]
[388397355,1759155041382,-151.0,0.00017,2]
[388397356,1759155041391,-151.0,0.00017,2]
[388397357,1759155041402,-281.989746,0.00017,2]
[388397358,1759155041412,-281.989746,0.00017,2]
[388397359,1759155041423,-281.989746,0.00017,2]
[388397360,1759155041433,-151.0,0.00017,2]
[388397361,1759155041444,-281.989746,0.00017,2]
[388397362,1759155041455,-151.0,0.00017,2]
[388397363,1759155041465,-151.0,0.00017,2]
[388397364,1759155041475,-151.0,0.00017,2]
[388397365,1759155041486,-151.0,0.00017,2]
[388397366,1759155041496,-151.0,0.00017,2]
[388397367,1759155041506,-151.0,0.00017,2]
[388397368,1759155041516,-151.0,0.00017,2]
[388397369,1759155041527,-151.0,0.00017,2]
[388397370,1759155041539,-294.834933,0.00017,2]
[388397371,1759155041550,-151.0,0.00017,2]
[388397372,1759155041565,-151.0,0.00017,2]
[388397373,1759155041577,-446.470289,0.00017,2]
[388397374,1759155041590,-151.0,0.00017,2]
[388397375,1759155041602,-446.470289,0.00017,2]
[388397376,1759155041613,-446.470289,0.00017,2]
[388397377,1759155041626,-300.0,0.00017003,2]
[388397378,1759155041646,-416.45095014,0.00017003,2]
[388397379,1759155041658,-666.0,0.00017003,2]
[388397380,1759155041672,-300.0,0.00017003,2]
[388397381,1759155041683,-36586.07147747,0.00017004,2]
[388397382,1759155041695,-250.0,0.00017009,2]
[388397383,1759155041707,-1680.0,0.00017046,2]
[388397384,1759155041718,-500.0,0.00017094,2]
[388397385,1759155041730,-488.0,0.00017094,2]
[388397386,1759155041740,-500.0,0.00017094,2]
[388397387,1759155041751,-500.0,0.00017094,2]
[388397388,1759155041761,-150.0,0.00017094,2]
[388397389,1759155041771,-500.0,0.00017094,2]
[388397390,1759155041782,-674.0,0.00017094,2]
[388397391,1759155041793,-150.0,0.00017094,2]
[388397392,1759155041807,-500.0,0.00017094,2]
[388397393,1759155041819,-150.0,0.00017094,2]
[388397394,1759155041829,-500.0,0.00017094,2]
[388397395,1759155041840,-2540.0,0.00017094,2]
[388397396,1759155041851,-150.0,0.00017094,2]
[388397397,1759155041862,-500.0,0.00017094,2]
[388397398,1759155041873,-150.0,0.00017094,2]
[388397399,1759155041884,-150.0,0.00017094,2]
[388397400,1759155041895,-150.0,0.00017094,2]
[388397401,1759155041906,-500.0,0.00017094,2]
[388397402,1759155041917,-600.0,0.00017094,2]
[388397403,1759155041928,-500.0,0.00017094,2]
[388397404,1759155041938,-500.0,0.00017094,2]
[388397405,1759155041949,-500.0,0.00017094,2]
[388397406,1759155041960,-450.0,0.00017094,2]
[388397407,1759155041971,-659.0,0.00017094,2]
[388397408,1759155041982,-500.0,0.00017094,2]
[388397409,1759155041994,-1310.89410765,0.00017105,2]
[388397410,1759155042005,-1310.89410766,0.00017105,2]
[388397411,1759155042015,-200.0,0.0001717,2]
[388397412,1759155042026,-9000.0,0.00017182,2]
[388397413,1759155042037,-257.56651002,0.00017182,2]
[388397414,1759155042047,-151.0,0.00017182,2]
[388397415,1759155042061,-500.0,0.00017182,2]
[388397416,1759155042072,-599.60298507,0.00017182,2]
[388397417,1759155042084,-8260.13072239,0.00017182,2]
[388397418,1759155042102,-500.0,0.00017182,2]
[388397419,1759155042113,-500.0,0.00017182,2]
[388397420,1759155042124,-151.0,0.00017182,2]
[388397421,1759155042135,-151.0,0.00017182,2]
[388397422,1759155042146,-500.0,0.00017182,2]
[388397423,1759155042157,-500.0,0.00017182,2]
[388397424,1759155042168,-500.0,0.00017182,2]
[388397425,1759155042178,-500.0,0.00017182,2]
[388397426,1759155042189,-269.54820062,0.00017182,2]
[388397428,1759155042199,-160.0,0.00017182,2]
[388397429,1759155042210,-623.58710448,0.00017182,2]
[388397430,1759155042220,-500.0,0.00017182,2]
[388397431,1759155042231,-3000.0,0.00017182,2]
[388397432,1759155042242,-332.18008195,0.00017182,2]
[388397433,1759155042253,-322.6107,0.00017182,2]
[388397434,1759155042263,-239.84119403,0.00017182,2]
[388397435,1759155042274,-1000.0,0.000172,2]
[388397436,1759155042284,-456.04,0.00017217,2]
[388397437,1759155042295,-8565.75555911,0.00017237,2]
[388397449,1759155042514,-700.0,0.00017266,2]
[388397451,1759155042525,-500.0,0.00017273,2]
[388397453,1759155042536,-500.0,0.00017274,2]
[388397455,1759155042548,-150.0,0.00017274,2]
[388397457,1759155042561,-150.0,0.00017274,2]
[388397459,1759155042571,-500.0,0.00017274,2]
[388397461,1759155042582,-150.0,0.00017274,2]
[388397463,1759155042592,-8882.6885148,0.00017292,2]
[388397465,1759155042602,-2000.0,0.000173,2]
[388397468,1759155042615,-1000.0,0.000173,2]
[388397470,1759155042626,-151.0,0.0001732,2]
[388397472,1759155042636,-151.0,0.0001732,2]
[388397474,1759155042647,-200.0,0.00017342,2]
[388397476,1759155042660,-9211.34798985,0.00017347,2]
[388397478,1759155042671,-500.0,0.00017368,2]
[388397480,1759155042682,-488.0,0.00017368,2]
[388397483,1759155042698,-208.49352166,0.00017368,2]
[388397484,1759155042708,-500.0,0.00017368,2]
[388397485,1759155042719,-150.0,0.00017368,2]
[388397486,1759155042729,-500.0,0.00017368,2]
[388397487,1759155042741,-674.0,0.00017368,2]
[388397488,1759155042752,-150.0,0.00017368,2]
[388397489,1759155042763,-500.0,0.00017368,2]
[388397490,1759155042774,-150.0,0.00017368,2]
[388397491,1759155042784,-500.0,0.00017368,2]
[388397492,1759155042794,-2540.0,0.00017368,2]
[388397493,1759155042807,-150.0,0.00017368,2]
[388397494,1759155042817,-500.0,0.00017368,2]
[388397495,1759155042828,-150.0,0.00017368,2]
[388397496,1759155042838,-150.0,0.00017368,2]
[388397497,1759155042848,-150.0,0.00017368,2]
[388397498,1759155042859,-500.0,0.00017368,2]
[388397499,1759155042869,-500.0,0.00017368,2]
[388397500,1759155042880,-500.0,0.00017368,2]
[388397501,1759155042891,-500.0,0.00017368,2]
[388397502,1759155042901,-659.0,0.00017368,2]
[388397503,1759155042912,-300.0,0.00017368,2]
[388397504,1759155042923,-1000.0,0.00017394,2]
[388397505,1759155042934,-500.0,0.00017397,2]
[388397506,1759155042944,-1000.0,0.000174,2]
[388397507,1759155042956,-9552.16786547,0.00017402,2]
[388397508,1759155042967,-673.75544829,0.00017404,2]
[388397509,1759155042978,-216.255113,0.00017404,2]
[388397510,1759155042989,-216.255113,0.00017404,2]
[388397511,1759155043000,-216.255113,0.00017404,2]
[388397512,1759155043011,-216.255113,0.00017404,2]
[388397513,1759155043021,-154.788332,0.00017404,2]
[388397514,1759155043031,-9905.5980765,0.00017457,2]
[388397515,1759155043042,-151.0,0.00017459,2]
[388397516,1759155043053,-151.0,0.00017459,2]
[388397517,1759155043063,-151.0,0.00017459,2]
[388397518,1759155043075,-151.0,0.00017459,2]
[388397519,1759155043086,-151.0,0.00017459,2]
[388397520,1759155043104,-151.0,0.00017459,2]